Cogmind - Beta 17.1 @@@ ROGUE MODE // 2026.08.25 @ 01:40:13 Player: obl-vn Result: Self-destructed Performance ------------- Evolutions (2) 1000 Regions Visited (7) 1400 Robots Destroyed (48) 240 Value Destroyed (1362) 1362 Prototype IDs (11) 220 Alien Tech Used (0) 0 Bonus (7499) 7499 TOTAL SCORE: 11721 Bonus ------- Follower Combat Kills 99 Prayed to X0-1V1 5000 Major X0-1V1 Interference 2100 Registered with UFD 300 Cogmind --------- Core Integrity 217/350 Matter 300/300 Energy 243/290 System Corruption 0% Temperature Cool (9) Movement Rolling (130) Ox2 Location -8/Scraptown Parts ------- > --- POWER (1) -------- Reinforced Deuterium Engine (fused) > --- PROPULSION (3) --- Medium Treads (fused) Armored Huge Wheel (fused) > --- UTILITY (6) ------ High-capacity Storage Unit Improved Shield Generator (fused) Hacking Suite (fused) Makeshift Hacking Suite (fused) Self-contained Transmogrifier X0-1V1's Piety Tracker > --- WEAPON (2) ------- Improved Light Cannon > --- INVENTORY (20) --- Ion Engine Improved Ion Engine Light Treads Light Treads Armored Wheel Armored Wheel Tech Extrapolator Heavy Assault Rifle Shotgun Shotgun Shotgun Improved Light Cannon Improved Light Cannon Improved Light Cannon EMP Blaster EMP Blaster Mini Grenade Launcher Mini Grenade Launcher Mini Grenade Launcher Peak State ------------ > --- POWER ------------ Reinforced Deuterium Engine > --- PROPULSION ------- Medium Treads Armored Huge Wheel > --- UTILITY ---------- High-capacity Storage Unit Improved Shield Generator Hacking Suite Makeshift Hacking Suite Self-contained Transmogrifier X0-1V1's Piety Tracker > --- WEAPON ----------- Improved Light Cannon System Spiker > --- INVENTORY -------- Ion Engine Improved Ion Engine Light Treads Light Treads Armored Wheel Armored Wheel Tech Extrapolator Heavy Assault Rifle Shotgun Shotgun Shotgun Improved Light Cannon Improved Light Cannon Improved Light Cannon EMP Blaster EMP Blaster Mini Grenade Launcher Mini Grenade Launcher Mini Grenade Launcher [Rating: 65] Favorites ----------- Power Ion Engine Engine Ion Engine Power Core Enhanced Nuclear Core Propulsion Armored Wheel Treads Advanced Treads Leg VSS Leg Wheel Armored Wheel Flight Unit Surge Thruster Utility High-capacity Storage Unit Device Self-contained Transmogrifier Storage High-capacity Storage Unit Processor Advanced Terrain Scan Processor Hackware Hacking Suite Protection Hardened Medium Armor Plating Weapon Improved Light Cannon Energy Cannon Advanced Beam Cannon Ballistic Gun Light Assault Rifle Ballistic Cannon Improved Light Cannon Launcher Grenade Launcher Special Weapon System Spiker Impact Weapon Hammer Build | -11 -10 -9 -9 -8 -8 -8 -8 ------- Run | Yrd Mat Mat Min Mat Sto Rec Scr Slots Evolved 4 | . . 2 . 2 . . . Power . | . . . . . . . . Propulsion . | . . . . . . . . Utility 4 | . . 2 . 2 . . . Weapon . | . . . . . . . . Parts Attached 35 | 6 13 4 . 3 8 . 1 Power 5 | 1 2 2 . . . . . Engine 5 | 1 2 2 . . . . . Core . | . . . . . . . . Reactor . | . . . . . . . . Propulsion 8 | 2 2 . . 1 3 . . Treads 5 | 2 . . . . 3 . . Leg . | . . . . . . . . Wheel 3 | . 2 . . 1 . . . Hover . | . . . . . . . . Flight . | . . . . . . . . Utility 13 | 1 5 2 . 2 3 . . Device 2 | . 1 1 . . . . . Storage 2 | 1 1 . . . . . . Processor 4 | . 3 1 . . . . . Hackware . | . . . . . . . . Protection 5 | . . . . 2 3 . . Artifact . | . . . . . . . . Weapon 9 | 2 4 . . . 2 . 1 Energy Gun . | . . . . . . . . Energy Cannon . | . . . . . . . . Ballistic Gun 3 | 2 1 . . . . . . Ballistic Cannon 4 | . 2 . . . 2 . . Launcher 1 | . 1 . . . . . . Special Weapon 1 | . . . . . . . 1 Impact Weapon . | . . . . . . . . Slashing Weapon . | . . . . . . . . Piercing Weapon . | . . . . . . . . Special Melee Weapon . | . . . . . . . . Unidentified Prototypes 2 | . . 1 . . . . 1 Parts Lost 1 | . . . . 1 . . . Power . | . . . . . . . . Propulsion . | . . . . . . . . Utility 1 | . . . . 1 . . . Weapon . | . . . . . . . . Highest Loss Streak 1 | . . . . 1 . . . To Critical Strikes . | . . . . . . . . Average Backups 14 | . 7 15 19 16 18 19 19 Power 1 | . . 1 3 3 3 3 2 Propulsion 2 | . . 2 2 1 4 3 4 Utility . | . . 1 1 . . . . Weapon 10 | . 6 10 13 12 11 13 12 Tool/Special . | . . . . . . . . Unused Backups 19 | . 2 . . 1 . 1 15 Power 1 | . . . . . . . 1 Propulsion 4 | . . . . . . 1 3 Utility 1 | . 1 . . . . . . Weapon 13 | . 1 . . 1 . . 11 Tool/Special . | . . . . . . . . Average Slot Usage (%) 95 | . 96 99 100 94 91 98 83 Engine 9 | . 14 11 11 3 . 4 8 Core 1 | . . . . 5 8 3 . Treads 15 | . 22 . . . 8 25 24 Wheel 8 | . 5 22 22 16 10 . . Device 17 | . 4 28 33 31 24 16 17 Storage 10 | . 14 11 11 9 8 8 8 Processor 4 | . 6 3 . . . 4 6 Hackware 2 | . . . . . . 5 11 Protection 4 | . . . . 8 12 12 4 Energy Cannon 6 | . . 10 22 14 8 7 . Ballistic Gun 3 | . 10 . . . . . . Ballistic Cannon 9 | . 17 11 . . 8 7 . Peak Build Rating 65 | 6 22 41 41 50 54 56 65 Average Rating 34 | 3 9 34 41 46 47 54 52 On Entrance 32 | . 6 22 41 41 44 54 50 Avg Prop Armor Cover (%) 4 | . . . . 3 . . 9 Naked Turns . | . . . . . . . . Heaviest Build 81 | 12 53 58 56 74 81 81 69 Greatest Support 78 | 40 40 24 24 24 66 72 78 Greatest Overweight (x) 6 | . 4 2 2 6 5 1 2 Average Overweight (x) 1 | . . 2 2 2 1 . . Largest Inventory Capacity 20 | 8 20 20 20 20 20 20 20 Average Capacity 17 | 6 12 20 20 20 20 20 20 Most Carried 20 | . 15 19 19 19 20 20 20 Average Carried 14 | . 7 15 19 16 18 19 19 Final Capacity 20 | 8 20 20 20 20 20 20 20 Final Carried 20 | . 14 19 19 19 19 20 19 Transmogrified Parts 21 | . . 4 . 5 2 5 5 Integrity Recovered 225 | . . 56 . 62 48 43 16 Class Distribution -------------------- 93% | Mutant 6% | Hacker-Mutant Dominant Class ---------------- Mutant | -10/Materials Mutant | -9/Materials Mutant | -9/Mines Mutant | -8/Materials Mutant | -8/Storage Mutant | -8/Recycling Mutant | -8/Scraptown Resources | -11 -10 -9 -9 -8 -8 -8 -8 ----------- Run | Yrd Mat Mat Min Mat Sto Rec Scr Matter Collected 1156 | 227 160 356 86 104 34 161 28 Remotely . | . . . . . . . . Salvage Created 1578 | . 256 698 233 158 95 138 . Parts 91 | . 20 51 2 7 4 7 . Haulers Intercepted 2 | . . 2 . . . . . Recyclers Shooed . | . . . . . . . . Parts Field Recycled . | . . . . . . . . Retrieved Matter . | . . . . . . . . Parts Self-Destructed . | . . . . . . . . Prevented . | . . . . . . . . Parts Restored . | . . . . . . . . Kills | -11 -10 -9 -9 -8 -8 -8 -8 ------- Run | Yrd Mat Mat Min Mat Sto Rec Scr Combat Hostiles Destroyed 43 | . 11 20 3 3 2 4 . Guns 7 | . 7 . . . . . . Cannons 28 | . 2 14 3 3 2 4 . AOE 8 | . 2 6 . . . . . Classes Destroyed 9 | . 3 3 1 . . 2 . Hauler 2 | . . 2 . . . . . Recycler 2 | . . 1 1 . . . . Watcher 1 | . 1 . . . . . . Swarmer 13 | . 5 7 . . . 1 . Grunt 19 | . 6 9 2 2 . . . Brawler 2 | . . . 1 1 . . . Sentry 7 | . . 4 . . 2 1 . Hunter 1 | . . . . . . 1 . Programmer 1 | . . . . . . 1 . Best Kill Streak 6 | . 5 6 3 3 1 3 . Combat Bots Only 6 | . 5 6 2 3 1 3 . Max Kills in Single Turn 3 | . 2 3 1 1 1 1 . Gunslinging . | . . . . . . . . Exploded 3 | . 2 3 . . . . . Melee . | . . . . . . . . Uniques/NPCs Destroyed . | . . . . . . . . Combat | -11 -10 -9 -9 -8 -8 -8 -8 -------- Run | Yrd Mat Mat Min Mat Sto Rec Scr Hostile Shots Fired 192 | . 55 48 15 20 11 23 20 Missed 61 | . 19 14 4 7 2 8 7 Hits 131 | . 36 34 11 13 9 15 13 Melee 9 | . . . 1 . . . 8 Projectile 122 | . 36 34 10 13 9 15 5 Critical Strikes 7 | . 1 1 1 1 . 1 2 Damage Taken 1405 | . 419 276 86 212 137 178 97 Core 255 | . 53 62 7 41 46 28 18 Absorbed by Shields 200 | . . 108 34 12 . 7 39 Ignored by Resistances 6 | . . 6 . . . . . Core Remaining (%) 70 | 100 47 . 65 . . . . Volleys Fired 105 | . 36 37 9 5 6 10 2 Largest 2 | . 2 2 2 2 2 2 1 Hottest 136 | . 66 136 136 136 101 101 33 Shots Fired 203 | . 70 71 17 10 12 21 2 Gun 55 | . 55 . . . . . . Cannon 143 | . 14 68 17 10 12 21 1 Launcher 4 | . 1 3 . . . . . Special 1 | . . . . . . . 1 Kinetic 112 | . 69 25 . . 6 11 1 Thermal 86 | . . 43 17 10 6 10 . Explosive 4 | . 1 3 . . . . . Electromagnetic . | . . . . . . . . Robot Hit Streak 10 | . 10 10 8 6 6 7 . Robot Miss Streak 4 | . 2 4 1 1 1 3 1 Penetration Max . | . . . . . . . . Secondary Targets . | . . . . . . . . Shots Hit Robots 133 | . 48 42 13 8 10 12 . Core Hits 62 | . 18 27 4 5 3 5 . Critical Kills . | . . . . . . . . Critical Parts Destroyed . | . . . . . . . . Critical Strikes 3 | . . 2 . 1 . . . Blast 2 | . . 2 . . . . . Smash 1 | . . . . 1 . . . Melee Attacks 1 | . . . . 1 . . . Impact 1 | . . . . 1 . . . Slashing . | . . . . . . . . Piercing . | . . . . . . . . Sneak Attacks . | . . . . . . . . Combat Hostiles . | . . . . . . . . Follow-up Attacks . | . . . . . . . . Damage Inflicted 2993 | . 635 1423 307 158 206 264 . Guns 326 | . 326 . . . . . . Cannons 2002 | . 166 917 307 142 206 264 . Explosions 640 | . 134 506 . . . . . Melee 16 | . . . . 16 . . . Ramming 9 | . 9 . . . . . . Kinetic 1067 | . 492 340 . . 105 130 . Thermal 1261 | . . 577 307 142 101 134 . Explosive 640 | . 134 506 . . . . . Electromagnetic . | . . . . . . . . Impact 16 | . . . . 16 . . . Slashing . | . . . . . . . . Piercing . | . . . . . . . . Highest Corruption 5 | . 2 . . 4 4 5 . Average Corruption 3 | . 2 . . 2 4 4 . Corruption Purged . | . . . . . . . . Corruption Blocked . | . . . . . . . . Effects 30 | . 1 . . . 8 21 . Message Errors 4 | . . . . . . 4 . Matter Fused 7 | . . . . . 2 5 . Heat Flow Errors 5 | . 1 . . . 2 2 . Energy Discharges 4 | . . . . . 1 3 . Data Loss (minor) 8 | . . . . . 2 6 . Misfires 1 | . . . . . . 1 . Alerts 1 | . . . . . 1 . . Overload Shots . | . . . . . . . . Overflow Damage 46 | . . 14 . . . 32 . Projectiles 46 | . . 14 . . . 32 . Explosions . | . . . . . . . . Melee . | . . . . . . . . Knockbacks 7 | . 2 4 . . . 1 . Impact . | . . . . . . . . Kinetic 6 | . 2 3 . . . 1 . Secondary 1 | . . 1 . . . . . Self-Inflicted Damage 4 | . 4 . . . . . . Shots . | . . . . . . . . Rammed 2 | . 1 . . 1 . . . Targets Rammed 2 | . 1 . . 1 . . . Kicked . | . . . . . . . . Crushed . | . . . . . . . . Highest Temperature 365 | . 93 247 365 150 102 286 6 Average Temperature 91 | . 18 98 214 67 49 76 5 Received Heat Transfer 582 | . 213 130 40 77 36 7 79 Effects 7 | . . 1 6 . . . . Energy Bleed 2 | . . 1 1 . . . . Interference 5 | . . . 5 . . . . Siege Activations . | . . . . . . . . Martial Activations . | . . . . . . . . Shielding Activations . | . . . . . . . . Robots Disrupted . | . . . . . . . . Combat Hostiles . | . . . . . . . . Robots Corrupted . | . . . . . . . . Combat Hostiles . | . . . . . . . . Parts Fried . | . . . . . . . . Impact Corruptions . | . . . . . . . . Robots Melted . | . . . . . . . . Combat Hostiles . | . . . . . . . . Parts Melted 1 | . . . 1 . . . . Heat Transferred 2248 | . . 1036 555 259 185 213 . Parts Sabotaged . | . . . . . . . . Parts Stolen 1 | . . . . . . . 1 Parts Stripped . | . . . . . . . . Power Chain Reactions . | . . . . . . . . Alert | -11 -10 -9 -9 -8 -8 -8 -8 ------- Run | Yrd Mat Mat Min Mat Sto Rec Scr Maximum Alert Level 1 | . . 1 . . . . . Low Security (%) 97 | 100 100 89 100 100 100 100 . Level 1 2 | . . 10 . . . . . Level 2 . | . . . . . . . . Level 3 . | . . . . . . . . Level 4 . | . . . . . . . . Level 5 . | . . . . . . . . High Security . | . . . . . . . . Max Security . | . . . . . . . . Peak Influence 241 | . 166 241 95 145 59 50 . Initial 90 | . . . 90 29 39 . . Average 42 | . 38 75 68 55 29 8 . Influence Increases 1375 | . 303 602 75 212 60 123 . Destroy 0b10 Robot/C 880 | . 220 400 60 60 40 100 . Destroy 0b10 Robot/NC 25 | . 5 15 5 . . . . Destroy Leader 166 | . 42 84 10 10 20 . . Allied During Kill 4 | . . . . . . 4 . Successful Hack 41 | . 7 8 . 7 . 19 . Destroy Structure 35 | . 14 20 . 1 . . . Lose Combat Pursuer 120 | . 15 75 . 30 . . . Miscellaneous 104 | . . . . 104 . . . Influence Decreases 1375 | . 303 369 233 192 155 119 4 Entered New Map 249 | . . . 143 46 56 . 4 Time Decay 966 | . 303 219 90 136 99 119 . Lost Part 10 | . . . . 10 . . . Purge Threat 150 | . . 150 . . . . . Squads Dispatched 6 | . 2 3 . 1 . . . Investigation . | . . . . . . . . Extermination . | . . . . . . . . Reinforcement 6 | . 2 3 . 1 . . . Assault . | . . . . . . . . Garrison . | . . . . . . . . Intercept . | . . . . . . . . Searches Triggered . | . . . . . . . . Construction Impeded . | . . . . . . . . Haulers Reinforced . | . . . . . . . . Active Scanning Responses . | . . . . . . . . Cargo Convoy Interrupts . | . . . . . . . . Stealth | -11 -10 -9 -9 -8 -8 -8 -8 --------- Run | Yrd Mat Mat Min Mat Sto Rec Scr Distress Signals 3 | . 1 2 . . . . . Communications Jammed . | . . . . . . . . Distress Signals . | . . . . . . . . Times Spotted 83 | . 19 37 3 7 2 6 9 Peak Tracking Total 13 | . 6 8 3 5 2 4 13 Tactical Retreats 8 | . 1 5 . 2 . . . Traps | -11 -10 -9 -9 -8 -8 -8 -8 ------- Run | Yrd Mat Mat Min Mat Sto Rec Scr Traps Triggered 6 | . 3 . . 1 2 . . Indirectly . | . . . . . . . . Trap Hack Attempts . | . . . . . . . . Triggered . | . . . . . . . . Disarmed . | . . . . . . . . Reprogrammed . | . . . . . . . . Reused . | . . . . . . . . Traps Extracted . | . . . . . . . . Installed . | . . . . . . . . Triggered . | . . . . . . . . Machines | -11 -10 -9 -9 -8 -8 -8 -8 ---------- Run | Yrd Mat Mat Min Mat Sto Rec Scr Machines Disabled 1 | . . . . . . . 1 Max in Single Turn 1 | . . . . . . . 1 Machines Repaired . | . . . . . . . . Machines Dismantled . | . . . . . . . . Machines Sabotaged . | . . . . . . . . Overloaded Fab Kills . | . . . . . . . . Hacking | -11 -10 -9 -9 -8 -8 -8 -8 --------- Run | Yrd Mat Mat Min Mat Sto Rec Scr Machines Accessed 14 | . 4 3 . 2 1 4 . Terminals 13 | . 4 2 . 2 1 4 . Fabricators . | . . . . . . . . Repair Stations . | . . . . . . . . Recycling Units . | . . . . . . . . Scanalyzers 1 | . . 1 . . . . . Garrison Access . | . . . . . . . . Total Hacks 30 | . 9 7 . 6 2 6 . Successful 19 | . 7 6 . 2 . 4 . Failed 11 | . 2 1 . 4 2 2 . Catastrophic . | . . . . . . . . Database Lockouts . | . . . . . . . . Manual 28 | . 10 5 . 6 1 6 . Terminals 28 | . 9 5 . 6 2 6 . Fabricators . | . . . . . . . . Repair Stations . | . . . . . . . . Recycling Units . | . . . . . . . . Scanalyzers 2 | . . 2 . . . . . Garrison Access . | . . . . . . . . Terminal Hacks 9 | . 3 1 . 1 . 4 . Branch Access Points 1 | . . . . 1 . . . Unreport Threat 1 | . . 1 . . . . . Locate Traps 3 | . 3 . . . . . . Zone Layout 4 | . . . . . . 4 . Fabricator Hacks . | . . . . . . . . Repair Station Hacks . | . . . . . . . . Recycling Unit Hacks . | . . . . . . . . Scanalyzer 2 | . . 2 . . . . . Retrieve Study 2 | . . 2 . . . . . Garrison Access Hacks . | . . . . . . . . Unauthorized Hacks 8 | . 4 3 . 1 . . . Terminals 8 | . 4 3 . 1 . . . Botnet 3 | . 1 1 . 1 . . . Skim 5 | . 3 2 . . . . . Fabricators . | . . . . . . . . Repair Stations . | . . . . . . . . Recycling Units . | . . . . . . . . Scanalyzers . | . . . . . . . . Garrison Access . | . . . . . . . . Data Cores Recovered . | . . . . . . . . Used . | . . . . . . . . Hacking Detections 10 | . 3 1 . 2 1 3 . Full Trace Events . | . . . . . . . . Feedback Events . | . . . . . . . . Feedback Blocked . | . . . . . . . . Robot Schematics Acquired . | . . . . . . . . Robots Built . | . . . . . . . . Authchips . | . . . . . . . . Time . | . . . . . . . . Total Robot Build Rating . | . . . . . . . . Part Schematics Acquired . | . . . . . . . . Parts Built . | . . . . . . . . Authchips . | . . . . . . . . Time . | . . . . . . . . Total Part Build Rating . | . . . . . . . . Part Studies Acquired 2 | . . 2 . . . . . Parts Repaired . | . . . . . . . . Time . | . . . . . . . . Parts Recycled . | . . . . . . . . Recycled Matter . | . . . . . . . . Retrieved Matter . | . . . . . . . . Retrieved Components . | . . . . . . . . Parts Scanalyzed . | . . . . . . . . Part Schematics Acquired . | . . . . . . . . Parts Damaged . | . . . . . . . . Bothacking | -11 -10 -9 -9 -8 -8 -8 -8 ------------ Run | Yrd Mat Mat Min Mat Sto Rec Scr Used RIF Installer . | . . . . . . . . Robots Hacked . | . . . . . . . . Non-combat . | . . . . . . . . Combat . | . . . . . . . . Robot Hacks Applied . | . . . . . . . . Relay Couplers Released . | . . . . . . . . Fabnet Peak Effective % . | . . . . . . . . Robots Rewired 3 | . . . . . . 3 . Allies Hacked . | . . . . . . . . Hacks Repelled . | . . . . . . . . Allies | -11 -10 -9 -9 -8 -8 -8 -8 -------- Run | Yrd Mat Mat Min Mat Sto Rec Scr Total Allies 6 | . . . . . . 3 3 Largest Group 4 | . . . . . . 3 4 Highest-Rated Group 72 | . . . . . . 61 72 Highest-Rated Ally 27 | . . . . . . 27 27 Total Orders . | . . . . . . . . Ally Attacks 16 | . . . . . . 6 10 Total Damage 349 | . . . . . . 149 200 Kills 5 | . . . . . . 1 4 Allies Corrupted . | . . . . . . . . Allies Melted . | . . . . . . . . X0-1V1 Amusement Gains 136 | . 3 4 20 6 3 5 95 Average Entertainment 10 | . 5 3 20 12 8 8 100 Good Acts 13 | . 1 7 . 1 2 1 1 Bad Acts 9 | . . 5 . 3 1 . . Intel | -11 -10 -9 -9 -8 -8 -8 -8 ------- Run | Yrd Mat Mat Min Mat Sto Rec Scr Active Infowar (turns) 240 | . . . . 129 111 . . Sensors 240 | . . . . 129 111 . . Robot Analysis Total . | . . . . . . . . Derelict Logs Recovered . | . . . . . . . . Drone Launches . | . . . . . . . . Drone Recoveries . | . . . . . . . . Exploration | -11 -10 -9 -9 -8 -8 -8 -8 ------------- Run | Yrd Mat Mat Min Mat Sto Rec Scr Turns Passed 3737 | 74 1144 658 195 283 246 604 533 Spaces Moved 2053 | 47 588 369 106 179 116 306 342 Core 8 | 8 . . . . . . . Treads 1134 | 39 413 . . . 41 306 335 Legs . | . . . . . . . . Wheels 911 | . 175 369 106 179 75 . 7 Hover . | . . . . . . . . Flight . | . . . . . . . . Fastest Speed 50 | 50 90 120 120 120 120 150 130 Average Speed 148 | 141 160 120 120 128 157 175 153 Slowest Speed 240 | 160 240 120 120 180 225 230 155 Overloaded Moves . | . . . . . . . . Propulsion Burnouts . | . . . . . . . . Robots Hopped . | . . . . . . . . Potential Cave-ins . | . . . . . . . . Cave-ins Triggered . | . . . . . . . . Exploration Rate (%) 38 | 3 81 43 19 24 22 72 41 Regions Visited 7 Branch Regions 4 Pre-discovered Areas . | . . . . . . . . Known Exits Taken 2 | . . 1 . 1 . . . Unknown Exits Taken 5 | 1 1 . 1 . 1 1 . Scrap Searched . | . . . . . . . . Spaces Dug . | . . . . . . . . Terrain Destroyed 31 | . 12 19 . . . . . Melee . | . . . . . . . . Projectile 3 | . 2 1 . . . . . AOE 28 | . 10 18 . . . . . Terrain Rammed . | . . . . . . . . Walls Destroyed . | . . . . . . . . Machines Disabled . | . . . . . . . . Actions | -11 -10 -9 -9 -8 -8 -8 -8 --------- Run | Yrd Mat Mat Min Mat Sto Rec Scr Total 2536 | 52 725 511 157 220 165 358 348 Wait 245 | . 46 92 43 25 16 23 . Move 2047 | 46 587 368 105 179 115 305 342 Hop . | . . . . . . . . Pick Up 41 | . 25 6 . 3 2 4 1 Fast Attach 24 | 6 12 . . 2 3 . 1 Attach 5 | . . 2 . 1 1 . 1 Detach . | . . . . . . . . Swap 17 | . 7 5 . 1 4 . . Drop 23 | . 11 1 . 3 2 5 1 Fire 105 | . 36 37 9 5 6 10 2 Melee 1 | . . . . 1 . . . Ram 1 | . 1 . . . . . . Kick . | . . . . . . . . Crush . | . . . . . . . . Escape Stasis 16 | . . . . . 16 . . Rewire 11 | . . . . . . 11 . Trap . | . . . . . . . . Miscellaneous . | . . . . . . . . Route ------- -11/Scrapyard -10/Materials (discovered 5 exits: *Mat x3 / [*Min] / [*Sub]) -9/Materials (discovered 3 exits: *Mat / *Min x2) -9/Mines (discovered 2 exits: *Mat / [*Zio]) -8/Materials -8/Storage -8/Recycling (discovered 2 exits: [*Fac] / [*Scr]) -8/Scraptown History --------- Turn | Location | Event 5 | -11/Scrapyard | Discovered new exit (range 15) 75 | -11/Scrapyard | Entered Materials 315 | -10/Materials | Build established: Mutant 315 | -10/Materials | Discovered new exit (range 3) 435 | -10/Materials | Discovered new exit (range 6) 506 | -10/Materials | Discovered new exit (range 8) 647 | -10/Materials | Discovered new exit (range 8) 1176 | -10/Materials | Discovered new exit (range 6) 1183 | -10/Materials | Made a sacrifice at D.C.S.S. Altar Unit 1183 | -10/Materials | Forcibly received Sfc. Transmogifier from X0-1V1 1184 | -10/Materials | Core integrity fell below 50% 1212 | -10/Materials | X0-1V1 foreshadows a heat wave 1219 | -10/Materials | Entered another Materials area 1219 | -9/Materials | Evolved 2 slots: Utility x2 1226 | -9/Materials | Ranged accuracy permanently improved by X0-1V1 (+5%; -50 max core) 1285 | -9/Materials | Identified exit to Mines 1285 | -9/Materials | X0-1V1 revealed exit location to -9/Mines 1445 | -9/Materials | X0-1V1 vaporized surrounding terrain (radius 15) 1455 | -9/Materials | Discovered new exit (range 14) 1549 | -9/Materials | Discovered exit to Mines (range 9) 1716 | -9/Materials | X0-1V1 announced a LAN party 1790 | -9/Materials | X0-1V1 activates XOMVISION 1808 | -9/Materials | X0-1V1 caused items to flee you 1877 | -9/Materials | Entered Mines 1895 | -9/Mines | Assembled infested the area 2054 | -9/Mines | A Derelict revealed a hidden shortcut to a safe place 2054 | -9/Mines | Discovered new exit (range 13) 2072 | -9/Mines | Entered Materials 2072 | -8/Materials | Evolved 2 slots: Utility x2 2114 | -8/Materials | Identified exit to Storage 2279 | -8/Materials | X0-1V1 added 0b10 threat records associated with you (minor) 2355 | -8/Materials | Entered Storage 2459 | -8/Storage | X0-1V1 vaporized surrounding terrain (radius 15) 2509 | -8/Storage | Propulsion slot count permanently improved by X0-1V1 (+1) 2592 | -8/Storage | Used back door to open Recycling access 2592 | -8/Storage | Discovered new exit (range 5) 2601 | -8/Storage | Entered Recycling 3058 | -8/Recycling | Discovered new exit (range 11) 3067 | -8/Recycling | X0-1V1 activates XOMVISION 3168 | -8/Recycling | Scanned before Scraplab entrance 3189 | -8/Recycling | Entered Scraplab 3202 | -8/Recycling | Discovered new exit (range 3) 3205 | -8/Recycling | Entered Scraptown 3205 | -8/Scraptown | Accompanied by 3 allies 3205 | -8/Scraptown | System corruption cleaned by C-Scrubber 3397 | -8/Scraptown | Visited Cave Peace 3448 | -8/Scraptown | Visited UFD Registry 3448 | -8/Scraptown | Registered with UFD as "Dualunit" 3496 | -8/Scraptown | Visited Chapter 10 3527 | -8/Scraptown | Visited A0-MCA Data Center 3552 | -8/Scraptown | Visited Abandonware Association 3575 | -8/Scraptown | Visited Supply Room 3595 | -8/Scraptown | Visited Research Penetration Think Tank 3616 | -8/Scraptown | Visited Infowarlord's Domain 3684 | -8/Scraptown | Visited Science Guys 3696 | -8/Scraptown | Attacked by Scraptown defenders 3701 | -8/Scraptown | Found Prototype Special Weapon 3701 | -8/Scraptown | Identified System Spiker 3732 | -8/Scraptown | X0-1V1 sent allied Y-45 Defender (x3) 3738 | -8/Scraptown | Self-destructed Last Messages --------------- 03724_ Triborg activates siege mode. 03724_ O9-S7N(p) slows to a halt. 03724_ Triborg slows to a halt. 03728_ KH-BB5(j): "To scrap with you!" 03729_ Sfc. Transmogrifier converts Med. Treads, Adv. Treads into Arm. Huge Wheel. 03731_ Slug penetrates Triborg. 03731_ H4-JOY(r) follow-up attacks with Ripteeth. 03732_ The cosmic winds blow in a new direction. Y-45 Defender form resolidifies at new position. 03732_ Critical hit (Burn: +35). 03732_ H4-JOY(r) follow-up attacks with Ripteeth. 03732_ Slug penetrates Y-45 Defender. 03734_ Critical hit (Burn: +36). 03735_ Y-45 Defender destroyed. 03737_ System Spiker ripped off. 03738_ Y-45 Defender destroyed. Map ----- +----------------------------------------------------+ | ?????????????? ????????#"""" #???????""" | | """ ???????????"#????????#"" " #??????#""" | | """??????###### ###??????#"""" #??????#""" | | """ "???" "??????#"" #??????#"""" | | ????X ???????#" ###?????#""" | | ??????? ?????????# #??????? | | ????????? ???????????######### ##????????# # | | ############ ##########???????##### ########### # | | #???????#"""" """"""""""" " | | #???????#" | | #???????#" | | #???????#" | | #???????#" | | ######### #### #????####" | | ??????? ?# #????"""" """""""""""" | | ??????""""" # #????"""" """""""""""" | | ????"" "" # #????"""" ""###### ## | | ????" " # #????"""" ""#???? ? | | ????" " # #????"""" ""#???? ? | | ????? "?# ###?#"""" ""#????" "? | | ????? "?# ""#"#"""" ""#??""? ?? | | ?????" ""?# """"#"""" ""# " ?? | | ??????"""""??# ""##?####" "" "??? | | ?????????????# ###?????#" "" "??? | | ?????????????# j p#########" ""# " ?? | | ?????????????# @r ""# "" ? | | ?????????????# % r ""#? "" "" | | ?????????????# % ""#??? | | ?????????????# ""#???? ? | | ############## r TT ""###### ## | | g TTE """""""""""" | | j i """""""""""" | | | | | | | | j #""""#" !! | | #????#" =%!! | | #????#""""""%" """"""""" | | # ############## ### ####????####### ########### | | ??????????? ## #????????# [* "#??? | | """#????????? ## #????????#" = #??## | | " #???????? #? #????????#&" "" ""#???"! | | " #??????? #?? #????????#&" "" ""#??#"! | | " #?????? #?? #????????#& ""#??#" | | ? #?????? #?? #????????#"" """"#??#"! | | ?###????? #??? #????????#"" " """#???" | | ???????? #????#????????#"" " "#???# | | "????????##########?????????????#"""" """#???" | | ????????????????????????????????#""" X """""#???"! | | ????????????????????????????????#"""""""""""#????# | +----------------------------------------------------+ Best States ------------- Heat Dissipation 58 Energy Generation 49 Energy Capacity 300 Matter Stores 300 Matter Capacity 450 Sight Range 16 Robot Scan Range 15 Terrain Scan Density 210 Armor Coverage 675 Resistance: TH 19 Evasion (%) 40 Targeting Accuracy 6 Recoil Reduction 3 Offensive Hacking 21 Item Schematics ----------------- None Robot Schematics ------------------ None Fabricated ------------ Nothing Repaired ---------- Nothing Studied --------- EMP Blaster | -9/Materials | Hacked Imp. Light Cannon | -9/Materials | Hacked Alien Tech Used ----------------- None Achievements -------------- None Challenges ------------ None Game ------ Seed SpreadElectronScreen Manual? 0 Play Time 00:32:37 Cumulative 219.6 hours Start 2026.08.25 @ 01:00:45 End 2026.08.25 @ 01:40:13 Sessions 1 Manual Loads 0 Difficulty Rogue Special Mode None Game No. 140 Rogue 140 Adventurer 0 Explorer 0 Win Type - Total 4 Types 2/0/0/1/0/0/0/1/0/0 Lore% 57 Gallery% 72 Achievement% 55 Wizard Run 0 Options --------- Layout 2 ASCII 0 Keyboard 0 Movement Mouse Keybinds 0 Fullscreen 1 Font 32/SmallcapsGlow Map View 50x44 Zoom Use 0% Tactical HUD 1 Map Filters NONE Filters NONE Steam 1 RUN: 27d710fc-7d4a-4f9f-b0d2-43923255adde